bitfinex/quotes_ETHUSD_20251024
["timestamp","ask_amount","ask_price","bid_price","bid_amount"]
[1761318017271,0.001,3906.1,3906.0,4.11536385]
[1761318017979,0.001,3906.1,3906.0,4.61456548]
[1761318018182,0.001,3906.9,3906.8,2.5596396]
[1761318018390,0.001,3906.9,3906.8,19.63866346]
[1761318018589,0.001,3906.9,3906.8,22.33210211]
[1761318018971,0.001,3906.9,3906.8,21.85850211]
[1761318019485,0.001,3906.9,3906.8,22.33210211]
[1761318021095,0.001,3906.9,3906.8,21.85850211]
[1761318021792,0.001,3906.9,3906.8,22.46010211]
[1761318022105,0.001,3906.9,3906.8,25.87510211]
[1761318022316,0.001,3906.9,3906.8,10.35127825]
[1761318022509,0.001,3906.9,3906.8,8.1314396]
[1761318024217,0.0002,3906.9,3906.8,7.6578396]
[1761318024605,0.0002,3906.9,3906.8,8.1314396]
[1761318024781,0.0002,3906.9,3906.8,7.6578396]
[1761318025794,0.0002,3906.9,3906.8,8.1314396]
[1761318025995,0.0002,3906.9,3906.8,10.73337023]
[1761318027602,0.0002,3906.9,3906.8,10.25977023]
[1761318028521,0.0002,3906.9,3906.8,10.73337023]
[1761318029024,0.0002,3906.9,3906.8,10.25977023]
[1761318029391,0.0002,3906.9,3906.8,10.73337023]
[1761318029826,0.0002,3906.9,3906.8,10.25977023]
[1761318030220,0.0002,3906.9,3906.8,14.07977023]
[1761318030523,0.2266,3906.9,3906.8,2.5596396]
[1761318030818,0.6865,3906.9,3906.8,2.5596396]
[1761318031395,0.0002,3906.9,3906.8,2.5596396]
[1761318031599,0.0002,3906.9,3906.8,2.58523599]
[1761318031825,0.0002,3906.9,3906.8,9.59391637]
[1761318032026,0.0002,3906.9,3906.8,10.06751637]
[1761318032804,0.0002,3906.9,3906.8,9.59391637]
[1761318033324,0.0002,3906.9,3906.8,10.06751637]
[1761318033898,0.0002,3906.9,3906.8,9.59391637]
[1761318034727,0.0002,3906.9,3906.8,7.5268396]
[1761318034928,0.0002,3906.9,3906.8,4.1148396]
[1761318035160,0.2266,3906.9,3906.8,4.1148396]
[1761318035294,0.0002,3906.9,3906.8,4.1148396]
[1761318036002,0.0002,3906.9,3906.8,8.5063196]
[1761318036332,0.0002,3906.9,3906.8,10.12777023]
[1761318037295,0.6975,3906.9,3906.8,4.1148396]
[1761318037842,0.6975,3906.9,3906.8,2.5596396]
[1761318039363,0.6975,3906.9,3906.6,2.56175324]
[1761318039656,0.4607,3906.8,3906.7,2.55965086]
[1761318040660,0.001,3907.3,3907.2,2.55937755]
[1761318041251,0.2028,3907.3,3907.2,2.55937755]
[1761318042818,0.001,3907.3,3907.2,2.55937755]
[1761318043025,0.001,3907.3,3907.2,2.68737755]
[1761318043937,0.2028,3907.3,3907.2,2.68737755]
[1761318044128,0.001,3907.3,3907.2,2.68737755]
[1761318044329,0.001,3907.3,3907.2,2.55937755]
[1761318044918,0.2028,3907.3,3907.2,2.55937755]
[1761318045639,0.001,3907.3,3907.2,2.55937755]
[1761318048144,0.0002,3907.3,3907.2,2.55937755]
[1761318048461,0.0985,3907.9,3907.8,2.55898459]
[1761318048756,0.2018,3908.1,3908.0,2.55885363]
[1761318049328,0.2264,3908.3,3908.2,2.55872268]
[1761318050159,0.4272,3908.3,3908.2,2.55872268]
[1761318050582,0.4272,3908.3,3907.9,2.5588772]
[1761318050781,0.4272,3908.3,3907.7,2.55903526]
[1761318050782,0.2985,3908.2,3908.0,2.55884236]
[1761318051387,0.2985,3908.2,3907.0,2.55950833]
[1761318051550,0.2985,3908.2,3906.8,2.56163629]
[1761318051750,0.2985,3908.2,3908.1,2.55878815]
[1761318053796,0.0642,3908.9,3908.8,2.55832992]
[1761318054153,0.0642,3908.9,3907.8,1.5552]
[1761318054353,0.128,3908.8,3908.3,2.55865721]
[1761318054571,0.0659,3908.8,3908.7,2.55839537]
[1761318054893,0.2264,3909.1,3909.0,2.55819902]
[1761318055474,0.128,3909.2,3909.1,2.55813358]
[1761318055687,0.2248,3909.7,3909.6,2.55780642]
[1761318056056,0.2922,3909.7,3909.6,2.55780642]
[1761318056887,0.3038,3910.0,3909.9,2.55761016]
[1761318057057,3.407,3909.7,3909.6,2.55780642]
[1761318057255,0.0688,3909.9,3909.8,2.55767558]
[1761318057584,3.4758,3909.9,3909.7,2.55772743]
[1761318057750,3.4758,3909.9,3909.8,2.55767558]
[1761318058090,3.407,3909.9,3909.8,2.55767558]
[1761318058387,0.2366,3910.0,3909.9,2.55761016]
[1761318058568,0.3046,3910.2,3910.1,2.55747934]
[1761318058769,1.8713,3910.9,3910.3,2.55734427]
[1761318058987,0.54320597,3910.8,3910.2,2.55740428]
[1761318059168,6.27912918,3910.8,3910.0,2.55754475]
[1761318059351,6.27912918,3910.8,3909.9,2.55760379]
[1761318059352,0.3161,3910.7,3910.1,2.55746365]
[1761318059690,0.3161,3910.7,3910.0,2.55754475]
[1761318059878,2.55719331,3910.6,3909.7,2.55767745]
[1761318060080,3.406,3910.5,3909.8,2.55761228]
[1761318060387,3.406,3910.5,3909.8,2.55767558]
[1761318060388,0.0753,3909.9,3909.8,2.55767558]
[1761318060789,0.5396,3909.9,3908.9,1.5552]
[1761318061091,0.5396,3909.9,3909.8,2.55767558]
[1761318061483,0.5396,3909.9,3908.3,0.431]
[1761318061679,0.5396,3909.9,3908.1,2.55878815]
[1761318061890,0.5396,3909.9,3908.2,2.98972268]
[1761318062088,0.5396,3909.9,3909.4,2.55792464]
[1761318062287,0.5396,3909.9,3909.2,2.55802762]
[1761318062470,3.405,3909.8,3909.2,2.55802762]
[1761318062671,3.405,3909.8,3909.3,2.55799042]
[1761318062868,0.4643,3909.7,3909.5,2.55781723]
[1761318063082,3.405,3909.6,3909.2,2.55802597]
[1761318063287,3.405,3909.6,3909.5,2.55787185]
[1761318063591,0.4643,3909.5,3909.4,2.5578828]
[1761318063794,0.4643,3909.5,3909.3,2.5579935]
[1761318063992,0.0753,3909.9,3908.8,0.02558329]
[1761318064199,3.405,3909.5,3909.4,2.55793727]
[1761318064561,3.8675,3909.8,3909.7,2.557741]
[1761318064961,3.8675,3909.8,3909.4,2.5578965]
[1761318065197,3.8675,3909.8,3909.7,2.557741]
[1761318065198,3.405,3909.8,3909.7,2.557741]
[1761318065640,3.405,3909.8,3908.3,0.431]
[1761318065641,3.405,3909.8,3908.2,0.531892]
[1761318065927,0.4625,3909.7,3908.7,0.128]
[1761318066111,0.128,3909.3,3909.2,2.55806814]
[1761318066492,0.5905,3909.3,3909.2,2.55806814]
[1761318067126,0.5905,3909.3,3909.0,2.55814807]
[1761318067127,0.4625,3909.7,3909.6,2.55780642]
[1761318067313,3.9945,3909.7,3909.6,2.55780642]
[1761318067513,3.532,3909.7,3909.6,2.55780642]
[1761318067925,3.9604,3909.7,3909.6,2.55780642]
[1761318068130,3.532,3909.7,3909.6,2.55780642]
[1761318068427,3.8324,3909.7,3909.5,2.55783134]
[1761318068722,3.404,3909.7,3909.6,2.55780642]
[1761318069142,3.9604,3909.7,3909.5,2.55785693]
[1761318069346,0.4284,3909.6,3909.5,2.55785693]
[1761318069513,0.5564,3909.6,3909.5,2.55785693]
[1761318070044,3.404,3909.6,3909.5,2.55787185]
[1761318070446,0.128,3909.8,3909.7,2.557741]
[1761318070617,3.531,3909.8,3909.7,2.557741]
[1761318071148,3.9594,3909.8,3909.7,2.557741]
[1761318072155,3.5302,3909.8,3909.7,2.557741]
[1761318072825,3.9586,3909.8,3909.0,0.128]
[1761318073024,3.9586,3909.8,3908.9,0.128]
[1761318073025,0.128,3909.5,3908.9,0.128]
[1761318073235,0.128,3909.5,3909.4,2.55793727]
[1761318073440,0.128,3909.5,3908.8,3.82]
[1761318073641,0.128,3909.2,3908.9,2.55826447]
[1761318073838,0.2303,3908.9,3908.1,3.82]
[1761318074037,0.2303,3908.9,3908.3,0.128]
[1761318074038,3.403,3908.8,3908.3,0.128]
[1761318074245,0.128,3908.6,3907.5,6.37913711]
[1761318074432,0.128,3908.6,3908.5,2.55852628]
[1761318075057,0.128,3908.6,3907.6,2.55911556]
[1761318075058,2.68646268,3908.6,3907.6,2.68709527]
[1761318075258,0.2303,3907.7,3907.6,2.55911556]
[1761318075565,3.402,3907.7,3907.6,2.55911556]
[1761318075986,3.402,3907.7,3907.2,0.128]
[1761318075987,3.8304,3907.7,3907.2,0.128]
[1761318076260,0.128,3907.8,3907.7,2.55905008]
[1761318076458,3.53,3907.8,3907.2,0.128]
[1761318076667,3.53,3907.8,3906.8,0.002]
[1761318076668,0.4284,3907.7,3906.8,0.002]
[1761318076837,0.128,3907.5,3906.8,0.002]
[1761318077035,0.128,3907.5,3906.8,0.13]
[1761318077404,0.128,3907.5,3907.4,2.55924655]
[1761318077670,3.53,3907.5,3907.4,2.55924655]
[1761318077835,0.4284,3908.2,3907.6,2.55911075]
[1761318078183,0.2303,3908.3,3908.2,2.55872268]
[1761318078479,0.4284,3908.6,3908.3,2.55859631]
[1761318078679,3.53,3908.5,3908.4,2.55859175]
[1761318080314,3.53,3908.5,3908.0,0.128]
[1761318080315,3.9584,3908.5,3908.0,0.128]
[1761318080594,0.128,3908.2,3906.8,0.002]
[1761318080767,0.50688,3908.3,3907.1,0.128]
[1761318081073,1.5552,3907.9,3906.8,2.56163791]
[1761318081386,3.401,3907.8,3906.9,2.55957408]
[1761318081553,0.4284,3908.2,3907.7,2.55901824]
[1761318081756,0.2303,3908.7,3906.9,0.4658]
[1761318081757,0.4284,3908.6,3906.9,0.4658]
[1761318081942,0.2303,3908.9,3907.2,1.5552]
[1761318082139,0.4284,3909.8,3907.8,4.11418459]
[1761318082335,0.0763,3909.9,3908.8,0.2022]
[1761318082651,1.708,3909.8,3909.4,2.55787427]
[1761318082832,1.708,3909.8,3909.1,2.55813326]
[1761318083039,0.4284,3909.7,3908.6,2.55846082]
[1761318083236,3.401,3909.6,3909.2,2.5580611]
[1761318083452,3.401,3909.6,3908.5,0.2022]
[1761318083672,3.401,3909.6,3909.0,2.55815528]
[1761318083873,0.001,3909.8,3909.7,2.557741]
[1761318084249,0.1129,3909.8,3909.1,0.2152]
[1761318084450,0.1129,3909.8,3908.5,3.6032]
[1761318084667,0.5349,3909.8,3908.5,0.2022]
[1761318084848,0.5349,3909.8,3909.0,2.55817574]
[1761318085165,0.422,3909.7,3909.0,2.55814318]
[1761318085366,0.1129,3909.8,3909.5,2.55782369]
[1761318085565,0.1129,3909.8,3909.5,2.55782829]
[1761318085880,0.1129,3909.8,3909.3,2.5579893]
[1761318085881,0.422,3909.7,3909.3,2.5579893]
[1761318086050,0.422,3909.7,3908.9,1.5552]
[1761318086444,3.4,3909.6,3909.3,2.55800225]
[1761318086680,0.1129,3909.8,3909.1,0.02558133]
[1761318086850,0.001,3909.8,3909.7,2.557741]
[1761318087977,0.001,3909.8,3908.6,3.4]
[1761318088167,0.417,3909.8,3909.5,2.55781566]
[1761318088775,0.417,3909.8,3909.4,2.55790685]
[1761318089279,0.417,3909.8,3908.5,1.7574]
[1761318089280,0.417,3909.8,3908.5,4.11370766]
[1761318089480,0.417,3909.8,3908.9,2.55820332]
[1761318089481,2.5577921,3909.7,3908.9,2.55820332]
[1761318089685,2.5577921,3909.7,3908.2,2.55872268]
[1761318089686,2.55793727,3909.4,3908.0,0.2152]
[1761318089843,3.4,3909.3,3908.0,0.2152]
[1761318090043,3.4,3909.3,3908.7,2.55839137]
[1761318090260,0.416,3909.2,3908.4,2.55855757]
[1761318090558,0.2303,3908.5,3908.4,2.55859175]
[1761318090766,3.6293,3908.5,3907.3,0.33002]
[1761318090968,3.6293,3908.5,3907.6,0.128]
[1761318091190,3.6293,3908.5,3908.0,2.55885363]
[1761318091191,0.128,3908.1,3908.0,2.55885363]
[1761318091681,0.2303,3909.2,3908.9,2.55820906]
[1761318091848,2.344,3909.1,3908.9,2.55820906]
[1761318092041,0.128,3909.0,3908.2,0.128]
[1761318092244,0.128,3908.8,3908.5,2.55849443]
[1761318092440,0.128,3908.8,3908.6,2.55839625]
[1761318092674,0.128,3908.8,3908.5,2.5585258]
[1761318092985,0.128,3908.5,3908.4,2.55858381]
[1761318093680,0.544,3908.5,3907.3,0.33002]
[1761318093879,3.815,3908.4,3907.9,2.55886586]
[1761318094179,3.815,3908.4,3907.6,0.128]
[1761318094180,0.128,3908.1,3907.6,0.128]
[1761318094578,0.128,3907.9,3907.4,2.68719554]
[1761318094788,0.128,3907.9,3907.8,2.55898459]
[1761318094954,0.128,3907.9,3907.4,0.128]
[1761318095275,0.128,3907.9,3907.3,0.002]
[1761318095475,0.128,3907.9,3907.8,2.55898459]
[1761318095680,0.128,3907.9,3907.3,0.002]
[1761318095887,0.128,3907.9,3907.4,2.55921295]
[1761318096043,0.2301,3908.0,3907.6,2.55911184]
[1761318096382,0.4162,3908.5,3907.3,0.002]
[1761318096566,0.128,3907.9,3907.4,0.128]
[1761318096760,0.128,3907.9,3907.7,2.55903821]
[1761318097081,0.416,3907.9,3907.6,2.55909239]
[1761318097384,0.128,3908.2,3907.7,0.0255905]
[1761318097584,0.001,3909.8,3909.1,2.55813358]
[1761318097786,3.399,3909.7,3909.3,2.55800271]
[1761318097953,3.399,3909.7,3909.6,2.55780642]
[1761318098150,3.399,3909.7,3909.5,2.55786116]
[1761318098393,3.399,3909.7,3909.6,2.55780642]
[1761318098690,0.001,3909.8,3909.7,2.557741]
[1761318098894,0.129,3909.8,3909.7,2.557741]
[1761318099125,3.527,3909.8,3909.1,0.1725]
[1761318099387,0.128,3909.5,3909.4,2.55793407]
[1761318101279,0.128,3909.5,3908.9,0.128]
[1761318101482,0.128,3909.5,3909.4,2.55793727]
[1761318101850,0.128,3909.5,3909.0,2.55816266]
[1761318102046,0.4372,3909.5,3908.0,3.399]
[1761318102286,0.4372,3909.5,3909.2,2.55806814]
[1761318102287,0.128,3909.3,3909.2,2.55806814]
[1761318103382,0.128,3909.3,3909.1,2.5581193]
[1761318103853,3.398,3909.2,3909.0,2.558179]
[1761318104050,0.128,3909.3,3908.6,2.68641446]
[1761318104275,3.8342,3909.2,3908.1,2.77396688]
[1761318104593,0.2112,3908.2,3907.6,0.002]
[1761318104751,3.107,3908.2,3908.1,2.55878815]
[1761318105396,3.397,3908.6,3908.5,2.55852628]
[1761318106709,0.001,3909.8,3908.5,0.4705]
[1761318107002,3.7235,3909.7,3908.1,0.72716585]
[1761318107155,3.7235,3909.7,3908.1,0.2152]
[1761318107156,1.5552,3909.6,3908.1,0.2152]
[1761318107462,0.50688,3909.3,3908.6,2.55844463]
[1761318107662,0.2115,3908.2,3908.0,0.002]
[1761318107873,0.2115,3908.2,3908.1,2.55878815]
[1761318108183,0.3253,3909.3,3908.0,0.002]
[1761318108184,0.2294,3908.9,3908.0,0.002]
[1761318108479,3.396,3908.8,3908.0,0.002]
[1761318108687,3.396,3908.7,3908.2,2.55866439]
[1761318108847,3.396,3908.6,3908.5,2.55852628]
[1761318109048,3.396,3908.7,3908.6,2.55846082]
[1761318111110,0.3076,3909.0,3908.7,2.55838682]
[1761318111280,0.3076,3909.0,3908.1,0.2152]
[1761318111281,0.3076,3909.0,3908.8,2.55832992]
[1761318111482,3.396,3908.9,3908.1,0.2152]
[1761318111683,3.396,3908.9,3908.8,2.55832992]
[1761318112097,3.7036,3908.9,3908.4,2.55857925]
[1761318112295,3.7036,3908.9,3908.5,2.55847623]
[1761318112484,0.3076,3908.8,3908.5,2.55847623]
[1761318112697,0.3076,3908.8,3908.5,2.55850815]
[1761318112898,0.3076,3908.8,3908.3,2.55860665]
[1761318113106,0.3076,3908.8,3908.4,2.558559]
[1761318113502,0.3076,3908.8,3908.0,0.002]
[1761318113824,0.3076,3908.8,3908.2,2.55872003]
[1761318114178,0.3076,3908.8,3908.0,0.002]
[1761318114179,0.128,3908.3,3908.0,0.002]
[1761318114402,0.128,3908.1,3908.0,2.56079987]
[1761318115294,3.523,3908.1,3908.0,2.56079987]
[1761318115482,3.395,3908.1,3908.0,2.56079987]
[1761318116286,3.7026,3908.1,3908.0,0.002]
[1761318117730,0.3076,3908.1,3908.0,0.002]
[1761318117892,3.395,3908.1,3908.0,2.56080249]
[1761318118089,3.395,3908.1,3908.0,0.002]
[1761318119084,0.128,3908.2,3908.0,0.002]
[1761318119288,3.7026,3908.1,3908.0,0.002]
[1761318119485,3.395,3908.1,3908.0,0.002]
[1761318120122,3.7026,3908.1,3908.0,0.002]
[1761318120620,0.3076,3908.1,3908.0,0.002]
[1761318120823,3.394,3908.1,3908.0,0.002]
[1761318121131,3.37326815,3908.1,3908.0,0.002]
[1761318121311,8.86667401,3908.1,3908.0,0.002]
[1761318121714,9.54661921,3908.1,3908.0,0.002]
[1761318122115,5.47267401,3908.1,3908.0,0.002]
[1761318122304,0.54420586,3908.1,3908.0,0.002]
[1761318122506,0.3086,3908.7,3908.0,0.002]
[1761318122801,0.001,3908.7,3908.0,0.002]
[1761318123003,0.001,3908.7,3908.5,2.55852628]
[1761318123205,0.001,3908.7,3908.0,0.27960606]
[1761318123206,0.001,3908.7,3908.4,2.55852885]
[1761318123391,0.001,3908.7,3908.0,0.27960606]
[1761318123615,0.001,3908.7,3908.6,2.55846082]
[1761318123816,2.96,3908.7,3908.6,3.07016527]
[1761318123996,0.001,3908.7,3908.6,3.52256527]
[1761318124410,0.001,3908.7,3908.6,5.07776527]
[1761318125925,0.001,3908.7,3908.6,3.52256527]
[1761318126233,0.001,3908.7,3908.6,2.55846082]
[1761318126816,0.001,3908.7,3908.6,3.01086082]
[1761318130105,0.001,3908.7,3908.6,2.55846082]
[1761318130310,0.3228,3908.7,3908.0,0.002]
[1761318130536,0.001,3908.7,3908.5,2.55849662]
[1761318130749,0.001,3908.7,3908.5,2.55846526]
[1761318130947,0.001,3908.7,3908.1,0.2152]
[1761318131238,0.128,3908.5,3908.0,0.13]
[1761318131536,0.128,3908.5,3908.3,2.55862811]
[1761318131713,0.128,3908.5,3908.4,2.55859175]
[1761318131906,0.3218,3908.4,3908.0,0.002]
[1761318132106,2.55866425,3908.3,3908.0,0.002]
[1761318132307,3.19366815,3908.1,3908.0,0.002]
[1761318132528,0.95668,3908.1,3908.0,0.002]
[1761318132733,6.90746815,3908.1,3908.0,0.002]
[1761318132933,8.46266815,3908.1,3908.0,0.002]
[1761318133352,24.49092833,3908.1,3908.0,0.002]
[1761318135364,3.05579662,3908.1,3908.0,0.002]
[1761318135647,6.44734869,3908.1,3908.0,0.002]
[1761318135949,9.00613684,3908.1,3908.0,0.002]
[1761318140019,2.54846869,3908.1,3908.0,0.002]
[1761318140219,6.27158815,3908.1,3908.0,0.002]
[1761318140420,8.87622497,3908.1,3908.0,0.002]
[1761318141521,10.79622497,3908.1,3908.0,0.002]
[1761318141924,5.48522497,3908.1,3908.0,0.002]
[1761318142324,10.79622497,3908.1,3908.0,0.002]
[1761318142775,7.82678815,3908.1,3908.0,0.002]
[1761318143264,8.87600373,3908.1,3908.0,0.002]
[1761318143620,5.48500373,3908.1,3908.0,0.002]
[1761318143821,10.79600373,3908.1,3908.0,0.002]
[1761318144256,10.79520373,3908.1,3908.0,0.002]
[1761318144680,1.5552,3908.1,3908.0,0.002]
[1761318144833,4.9462,3908.1,3908.0,0.002]
[1761318145037,5.45308,3908.1,3908.0,0.002]
[1761318145446,8.01186815,3908.1,3908.0,0.002]
[1761318146352,8.33206815,3908.1,3908.0,0.002]
[1761318147768,10.25106815,3908.1,3908.0,0.002]
[1761318149276,10.79333117,3908.1,3908.0,0.002]
[1761318149870,4.94106815,3908.1,3908.0,0.002]
[1761318150066,10.25106815,3908.1,3908.0,0.002]
[1761318150381,10.37906815,3908.1,3908.0,0.002]
[1761318150591,5.06906815,3908.1,3908.0,0.002]
[1761318150993,10.37906815,3908.1,3908.0,0.002]
[1761318151648,5.06906815,3908.1,3908.0,0.002]
[1761318152057,10.37906815,3908.1,3908.0,0.002]
[1761318152396,0.3212,3908.7,3908.0,0.002]
[1761318152701,0.128,3908.1,3908.0,2.56083004]
[1761318152863,3.517,3908.1,3908.0,2.56083004]
[1761318153583,0.128,3908.1,3908.0,2.56083004]
[1761318153773,3.517,3908.1,3908.0,2.56083004]
[1761318154208,3.517,3908.1,3908.0,0.002]
[1761318154499,3.517,3908.1,3908.0,2.56085363]
[1761318154802,3.517,3908.1,3908.0,0.002]
[1761318155174,3.517,3908.1,3908.0,2.56085363]
[1761318155571,3.517,3908.1,3908.0,0.002]
[1761318158801,6.90286815,3908.1,3908.0,0.002]
[1761318159003,8.45806815,3908.1,3908.0,0.002]
[1761318159192,4.62113008,3907.7,3907.6,0.002]
[1761318159420,24.03697729,3907.7,3907.3,0.002]
[1761318159583,5.30108399,3907.4,3907.3,0.002]
[1761318159784,5.1648302,3907.4,3907.3,0.002]
[1761318160019,10.4728302,3907.4,3907.3,0.002]
[1761318160229,2.60558365,3907.4,3907.3,0.002]
[1761318160388,8.5528302,3907.4,3907.3,0.002]
[1761318160589,2.60558365,3907.4,3907.3,0.002]
[1761318160789,3.388,3907.4,3907.3,0.002]
[1761318161295,3.93268059,3907.4,3907.3,0.002]
[1761318162519,7.45260714,3907.4,3907.3,0.002]
[1761318163186,9.00780714,3907.4,3907.3,0.002]
[1761318165336,7.31539205,3907.3,3907.2,0.002]
[1761318165494,12.28715041,3907.3,3907.2,0.002]
[1761318165699,10.92687264,3907.3,3907.2,0.002]
[1761318165895,1.90540554,3907.3,3907.2,0.002]
[1761318166098,6.49099264,3907.3,3907.2,0.002]
[1761318166415,8.04619264,3907.3,3907.2,0.002]
[1761318166800,8.55307264,3907.3,3907.2,0.002]
[1761318167002,8.04619264,3907.3,3907.2,0.002]
[1761318167201,9.00687264,3907.3,3907.2,0.002]
[1761318167431,5.99376059,3907.3,3907.2,0.002]
[1761318167597,8.55307264,3907.3,3907.2,0.002]
[1761318168336,8.55227264,3907.3,3907.2,0.002]
[1761318169134,5.99296059,3907.3,3907.2,0.002]
[1761318169303,6.12096059,3907.3,3907.2,0.002]
[1761318169929,8.68027264,3907.3,3907.2,0.002]
[1761318170503,5.29327264,3907.3,3907.2,0.002]
[1761318170708,8.67927264,3907.3,3907.2,0.002]
[1761318171667,6.11996059,3907.3,3907.2,0.002]
[1761318171815,2.73396059,3907.3,3907.2,0.002]
[1761318172018,8.67927264,3907.3,3907.2,0.002]
[1761318173230,6.11996059,3907.3,3907.2,0.002]
[1761318173431,5.29327264,3907.3,3907.2,0.002]
[1761318173743,8.67927264,3907.3,3907.2,0.002]
[1761318174120,6.11996059,3907.3,3907.2,0.002]
[1761318174317,8.67927264,3907.3,3907.2,0.002]
[1761318174948,9.13307264,3907.3,3907.2,0.002]
[1761318175331,8.67927264,3907.3,3907.2,0.002]
[1761318176151,9.13307264,3907.3,3907.2,0.002]
[1761318176529,8.67927264,3907.3,3907.2,0.002]
[1761318176917,2.73396059,3907.3,3907.2,0.002]
[1761318177143,6.11896059,3907.3,3907.2,0.002]
[1761318177454,0.68021283,3907.9,3907.2,3.03317755]
[1761318177660,3.385,3907.8,3907.2,3.03311783]
[1761318177815,0.128,3907.4,3907.2,0.002]
[1761318178144,3.385,3907.3,3907.2,0.002]
[1761318178365,3.386,3907.3,3907.2,0.6768]
[1761318178887,3.386,3907.3,3907.2,0.002]
[1761318179050,6.45219205,3907.3,3907.2,0.002]
[1761318179252,0.50788,3907.3,3907.2,0.002]
[1761318179462,0.001,3907.3,3907.2,0.002]
[1761318179659,3.386,3907.3,3907.2,0.002]
[1761318180172,0.001,3907.3,3907.2,0.002]
[1761318180384,3.386,3907.3,3907.2,0.002]
[1761318180860,8.40819205,3907.3,3907.2,0.002]
[1761318181064,5.44808,3907.3,3907.2,0.002]
[1761318181262,0.50788,3907.3,3907.2,0.002]
[1761318181473,3.89188,3907.3,3907.2,0.002]
[1761318181641,0.001,3907.3,3907.2,0.205]
[1761318181988,3.385,3907.3,3907.2,0.002]
[1761318182653,6.45119205,3907.3,3907.2,0.002]
[1761318182850,3.89188,3907.3,3907.2,0.002]
[1761318183059,0.001,3907.3,3907.2,0.002]
[1761318183254,3.385,3907.3,3907.2,0.4738]
[1761318183453,3.385,3907.3,3907.2,0.002]
[1761318183868,8.00639205,3907.3,3907.2,0.002]
[1761318184050,8.55008942,3907.3,3907.2,0.002]
[1761318185044,5.99077737,3907.3,3907.2,0.002]
[1761318185261,8.55008942,3907.3,3907.2,0.002]
[1761318185548,8.95088942,3907.3,3907.2,0.002]
[1761318185777,9.63110225,3907.3,3907.2,0.002]
[1761318186188,9.23030225,3907.3,3907.2,0.002]
[1761318186394,8.55008942,3907.3,3907.2,0.002]
[1761318186893,9.23030225,3907.3,3907.2,0.002]
[1761318187196,4.43557737,3907.3,3907.2,0.002]
[1761318187399,7.39568942,3907.3,3907.2,0.002]
[1761318187578,4.43557737,3907.3,3907.2,0.002]
[1761318187890,0.54469737,3907.3,3907.2,0.002]
[1761318188089,0.001,3907.3,3907.2,0.002]
[1761318188308,0.001,3907.3,3907.2,3.01997755]
[1761318188458,0.001,3907.3,3907.2,0.002]
[1761318188459,2.988,3907.3,3907.2,0.002]
[1761318188665,3.116,3907.3,3907.2,0.002]
[1761318188885,2.988,3907.3,3907.2,0.002]
[1761318190256,0.001,3907.3,3907.2,3.01997755]
[1761318190459,3.383,3907.3,3907.2,3.59842229]
[1761318190660,3.383,3907.3,3907.2,3.01997755]
[1761318191259,0.001,3907.3,3907.2,3.01997755]
[1761318191461,3.383,3907.3,3907.2,3.01997755]
[1761318192284,3.3822,3907.3,3907.2,3.01997755]
[1761318192865,0.0002,3907.3,3907.2,3.01997755]
[1761318193186,3.3822,3907.3,3907.2,3.59842229]
[1761318193399,0.0002,3907.3,3907.2,3.62401606]
[1761318193711,0.001,3907.7,3907.6,4.11431556]
[1761318193912,0.001,3908.1,3908.0,4.11405363]
[1761318194081,0.001,3908.5,3908.4,2.55859175]
[1761318194282,0.001,3908.5,3908.4,3.01719175]
[1761318198722,0.001,3908.5,3908.4,4.57239175]
[1761318198926,0.001,3908.5,3908.4,4.70039175]
[1761318201737,0.001,3908.5,3908.4,4.59797766]
[1761318201941,0.001,3908.5,3908.4,10.67720262]
[1761318202246,0.001,3908.5,3908.4,10.65161671]
[1761318203945,0.001,3908.5,3908.4,14.97849671]
[1761318205726,0.001,3908.5,3908.4,15.27588463]
[1761318206145,0.001,3908.5,3908.4,14.97849671]
[1761318207348,0.001,3908.7,3908.6,2.55846082]
[1761318207548,0.212,3911.3,3909.3,14.56379706]
[1761318207750,0.4248,3911.2,3910.9,2.55693914]
[1761318207949,0.4248,3911.2,3911.1,2.55682544]
[1761318208814,0.4248,3911.2,3910.7,2.55703691]
[1761318209014,0.4248,3911.2,3910.9,2.55695619]
[1761318209251,0.4248,3911.2,3909.5,0.76781228]
[1761318209425,0.4248,3911.2,3909.7,0.6434]
[1761318209633,0.982,3911.1,3911.0,2.55689082]
[1761318209828,0.212,3911.3,3911.0,2.55689082]
[1761318210033,3.588,3911.3,3911.1,2.55678231]
[1761318210242,4.0105,3911.3,3910.8,2.55701051]
[1761318210443,0.4225,3911.2,3911.0,2.55682643]
[1761318210955,3.588,3911.3,3911.1,2.55680727]
[1761318211250,3.588,3911.3,3911.1,2.55678243]
[1761318211640,0.128,3911.2,3911.1,2.55678243]
[1761318211845,0.5505,3911.2,3910.6,2.55715235]
[1761318212018,0.5505,3911.2,3910.5,0.128]
[1761318212019,3.588,3911.3,3911.1,2.55682544]
[1761318212225,0.128,3911.0,3910.9,2.55695619]
[1761318212850,0.212,3911.3,3911.2,2.55676007]
[1761318213053,0.4225,3911.2,3910.9,2.55689922]
[1761318213258,0.4225,3911.2,3910.1,2.55744]
[1761318213259,0.128,3910.8,3910.1,2.55744]
[1761318213557,0.128,3910.6,3910.5,2.5571761]
[1761318213921,0.128,3910.6,3910.0,0.128]
[1761318213922,0.7473,3910.6,3910.0,0.128]